fUSD/lending_fUSD_20240528
["ID","MTS","AMOUNT","RATE_DAILY","PERIOD"]
[328107370,1716867033856,-3000.0,0.000268,2]
[328107371,1716867033872,-938.8,0.00026954,2]
[328107372,1716867033887,-152.10323351,0.00026988,2]
[328107373,1716867033896,-805.91709047,0.0002739,2]
[328107374,1716867033906,-2585.58,0.00027397,10]
[328107375,1716867033915,-2154.65,0.00027397,10]
[328107376,1716867033924,-1366.51530341,0.00027439,2]
[328107377,1716867033934,-7162.74068962,0.00027439,2]
[328107378,1716867033943,-620.07,0.00027456,2]
[328107379,1716867033952,-207.0,0.0002755,2]
[328107380,1716867033961,-208.0,0.0002755,2]
[328107381,1716867033970,-155.9114174,0.00027651,2]
[328107382,1716867033980,-185.18333251,0.00027717,2]
[328107383,1716867033989,-158.0370497,0.00027775,2]
[328107384,1716867033999,-150.0,0.00027829,2]
[328107385,1716867034009,-7859.86454775,0.00028,2]
[328107386,1716867034029,-155.0,0.00028,2]
[328107387,1716867034040,-152.10323351,0.00028167,2]
[328107388,1716867034050,-1366.51530341,0.00028178,2]
[328107389,1716867034060,-7162.74068962,0.00028178,2]
[328107390,1716867034070,-300.0,0.000282,2]
[328107391,1716867034080,-150.0,0.00028229,2]
[328107392,1716867034094,-158.0370497,0.00028276,2]
[328107393,1716867034104,-168.34565721,0.00028389,2]
[328107394,1716867034114,-157.54126416,0.00028442,2]
[328107395,1716867034123,-168.59,0.00028487,2]
[328107396,1716867034134,-207.0,0.0002851,2]
[328107397,1716867034144,-208.0,0.0002851,2]
[328107398,1716867034154,-300.0,0.00028571,2]
[328107399,1716867034164,-155.24281723,0.00028685,2]
[328107400,1716867034175,-185.18333251,0.00028873,2]
[328107401,1716867034185,-1366.51530341,0.00028917,2]
[328107402,1716867034195,-7162.74068962,0.00028917,2]
[328107403,1716867034205,-300.0,0.00028942,2]
[328107404,1716867034215,-529.33,0.00028942,2]
[328107405,1716867034226,-5000.0,0.00029,2]
[328107406,1716867034236,-1484.34244626,0.00029,2]
[328107407,1716867034246,-330.35274643,0.00029012,2]
[328107408,1716867034257,-445.0,0.00029021,2]
[328107409,1716867034267,-2398.0,0.00029021,2]
[328107410,1716867034277,-808.0,0.00029021,2]
[328107411,1716867034290,-164.0,0.00029021,2]
[328107412,1716867034300,-150.0,0.00029021,2]
[328107413,1716867034310,-216.0,0.00029021,2]
[328107414,1716867034321,-1137.0,0.00029021,2]
[328107415,1716867034332,-1651.0,0.00029021,2]
[328107416,1716867034341,-3166.0,0.00029021,2]
[328107417,1716867034353,-5140.0,0.00029021,2]
[328107418,1716867034363,-5766.0,0.00029021,2]
[328107419,1716867034373,-357.0,0.00029021,2]
[328107420,1716867034384,-289.0,0.00029021,2]
[328107421,1716867034394,-975.0,0.00029021,2]
[328107422,1716867034405,-155.07773877,0.00029029,2]
[328107423,1716867034415,-155.9114174,0.00029127,2]
[328107424,1716867034425,-1813.67,0.00029178,2]
[328107425,1716867034436,-416.21,0.00029178,2]
[328107426,1716867034447,-416.21,0.00029178,2]
[328107427,1716867034457,-416.21,0.00029178,2]
[328107428,1716867034467,-414.53,0.00029178,2]
[328107429,1716867034477,-1000.0,0.000292,2]
[328107430,1716867034487,-225.0,0.000292,2]
[328107431,1716867034496,-508.0,0.000292,2]
[328107432,1716867034506,-355.0,0.000292,2]
[328107433,1716867034517,-159.70113008,0.00029209,2]
[328107434,1716867034527,-150.0,0.00029262,2]
[328107435,1716867034539,-501.02301606,0.00029313,2]
[328107436,1716867034549,-524.82,0.00029315,2]
[328107437,1716867034558,-420.74,0.00029315,2]
[328107438,1716867034568,-300.0,0.00029315,2]
[328107439,1716867034577,-150.0,0.00029315,2]
[328107440,1716867034587,-524.82,0.00029315,2]
[328107441,1716867034597,-524.82,0.00029315,2]
[328107442,1716867034606,-150.0,0.00029315,2]
[328107443,1716867034616,-352.06,0.00029315,2]
[328107444,1716867034625,-524.82,0.00029315,2]
[328107445,1716867034635,-378.9,0.00029315,2]
[328107446,1716867034644,-150.0,0.00029315,2]
[328107447,1716867034653,-150.0,0.0002934,2]
[328107448,1716867034662,-150.0,0.0002934,2]
[328107449,1716867034672,-150.0,0.0002934,2]
[328107450,1716867034681,-150.0,0.0002934,2]
[328107451,1716867034691,-150.0,0.0002934,2]
[328107452,1716867034700,-152.10323351,0.00029397,2]
[328107453,1716867034709,-1108.38548343,0.000294,2]
[328107454,1716867034719,-1137.4304484,0.000294,2]
[328107455,1716867034728,-207.0,0.0002947,2]
[328107456,1716867034738,-208.0,0.0002947,2]
[328107457,1716867034747,-150.0,0.00029475,2]
[328107458,1716867034756,-385.87,0.00029482,2]
[328107459,1716867034766,-221.23980184,0.000295,3]
[328107460,1716867034775,-1127.8007289,0.00029533,2]
[328107461,1716867034787,-155.9114174,0.00029553,2]
[328107462,1716867034797,-158.0370497,0.00029579,2]
[328107463,1716867034807,-151.43,0.00029589,2]
[328107464,1716867034816,-1366.51530341,0.00029656,2]
[328107465,1716867034826,-219.07493152,0.00029656,2]
[328107466,1716867034841,-6943.6657581,0.00029656,2]
[328107467,1716867034851,-24246.03946761,0.00029815,2]
[328107468,1716867034863,-581.433853,0.00029815,2]
[328107469,1716867038291,-1795.54,0.00027397,10]
[328107470,1716867038301,-322.02203763,0.00027439,2]
[328107471,1716867038310,-2607.58036438,0.00029021,2]
[328107472,1716867038322,-3350.0,0.00029021,2]
[328107473,1716867038334,-372.33325024,0.00029021,2]
[328107474,1716867038345,-7332.56230694,0.00029021,2]
[328107476,1716867038726,-24281.52407844,0.00029021,2]
[328107477,1716867038736,-1700.12667939,0.00029815,2]
[328107478,1716867038746,-9703.36,0.00029815,2]
[328107479,1716867038756,-500.0,0.00029815,2]
[328107480,1716867038766,-500.0,0.00029815,2]
[328107481,1716867038775,-500.0,0.00029815,2]
[328107482,1716867038786,-500.0,0.00029815,2]
[328107483,1716867038796,-500.0,0.00029815,2]
[328107484,1716867038805,-500.0,0.00029815,2]
[328107485,1716867038814,-500.0,0.00029815,2]
[328107486,1716867038824,-500.0,0.00029815,2]
[328107487,1716867038833,-500.0,0.00029815,2]
[328107488,1716867038843,-500.0,0.00029815,2]
[328107489,1716867038852,-500.0,0.00029815,2]
[328107490,1716867038862,-500.0,0.00029815,2]
[328107491,1716867038871,-500.0,0.00029815,2]
[328107492,1716867038881,-500.0,0.00029815,2]
[328107493,1716867038891,-500.0,0.00029815,2]
[328107494,1716867038901,-500.0,0.00029815,2]
[328107495,1716867038911,-500.0,0.00029815,2]
[328107496,1716867038921,-500.0,0.00029815,2]
[328107497,1716867038931,-500.0,0.00029815,2]
[328107498,1716867038941,-500.0,0.00029815,2]
[328107499,1716867038951,-500.0,0.00029815,2]
[328107500,1716867038962,-500.0,0.00029815,2]
[328107501,1716867038971,-152.10323351,0.00029874,2]
[328107502,1716867038982,-166.5344961,0.00029875,2]
[328107503,1716867038991,-46527.79014332,0.000299,2]
[328107504,1716867039001,-384.61911836,0.000299,2]
[328107505,1716867039011,-14338.33734937,0.000299,2]
[328107506,1716867039022,-158.0370497,0.00029942,2]
[328107507,1716867039032,-938.8,0.00029949,2]
[328107508,1716867039048,-185.07745781,0.00029976,2]
[328107509,1716867039058,-2399.88458572,0.00029976,2]
[328107510,1716867039069,-150.78,0.0002999,2]
[328107511,1716867039080,-150.78,0.0002999,2]
[328107512,1716867039092,-150.78,0.0002999,2]
[328107513,1716867039102,-497.47085025,0.00029999,2]
[328107514,1716867039112,-500.0,0.00029999,2]
[328107515,1716867039124,-514.95247637,0.00029999,2]
[328107516,1716867039133,-456.0,0.0003,5]
[328107517,1716867039143,-55213.83485583,0.0003,11]
[328107518,1716867039154,-308.91703931,0.0003,4]
[328107519,1716867039164,-475.7289704,0.0003,2]
[328107520,1716867039177,-5695.44208129,0.0003,2]
[328107521,1716867039189,-19427.2898834,0.0003,4]
[328107522,1716867039199,-23856.49509959,0.0003,4]
[328107523,1716867039210,-844.71246363,0.0003,10]
[328107524,1716867039220,-376.97064897,0.0003,2]
[328107525,1716867039231,-19543.49035467,0.0003,2]
[328107526,1716867039241,-348.77208287,0.0003,2]
[328107527,1716867039252,-1709.8738246,0.0003,2]
[328107528,1716867039262,-290000.0,0.0003,2]
[328107529,1716867039273,-615.84835543,0.0003,30]
[328107530,1716867039284,-28087.27791955,0.0003,2]
[328107531,1716867039298,-164.61062386,0.0003,2]
[328107532,1716867039308,-150.0,0.0003,2]
[328107533,1716867039318,-174.77006426,0.00030035,2]
[328107534,1716867039327,-1000.0,0.00030036,2]
[328107535,1716867039337,-1235.38020448,0.000301,3]
[328107536,1716867039346,-150.0,0.000301,11]
[328107537,1716867039357,-150.78,0.00030125,2]
[328107538,1716867039368,-150.78,0.00030125,2]
[328107539,1716867039379,-150.78,0.00030125,2]
[328107540,1716867039389,-150.78,0.00030125,2]
[328107541,1716867039399,-150.78,0.00030125,2]
[328107542,1716867039410,-150.78,0.00030126,2]
[328107543,1716867039419,-4183.74455933,0.00030132,2]
[328107544,1716867039430,-259693.61772769,0.00030135,2]
[328107545,1716867039439,-461271.72851883,0.00030135,4]
[328107546,1716867039450,-155.0676453,0.00030136,6]
[328107547,1716867039460,-500.0,0.00030136,6]
[328107548,1716867039470,-500.0,0.00030136,6]
[328107549,1716867039480,-500.0,0.00030136,6]
[328107550,1716867039490,-515.47854304,0.00030136,6]
[328107551,1716867039500,-512.60523716,0.00030136,6]
[328107552,1716867039511,-500.0,0.00030136,2]
[328107553,1716867039520,-500.0,0.00030136,2]
[328107554,1716867039531,-507.78563282,0.00030136,6]
[328107555,1716867039543,-504.99826985,0.00030136,6]
[328107556,1716867039554,-515.05110926,0.00030136,6]
[328107557,1716867039564,-505.059791,0.00030136,6]
[328107558,1716867039575,-500.0,0.00030136,2]
[328107559,1716867039593,-508.19505306,0.00030136,6]
[328107560,1716867039603,-507.18225233,0.00030136,2]
[328107561,1716867039613,-500.0,0.00030136,6]
[328107562,1716867039624,-500.0,0.00030136,6]
[328107563,1716867039634,-500.0,0.00030136,6]
[328107564,1716867039644,-500.0,0.00030136,6]
[328107565,1716867039654,-500.0,0.00030136,6]
[328107566,1716867039664,-519.2472894,0.00030136,6]
[328107567,1716867039674,-504.05345394,0.00030136,6]
[328107568,1716867039684,-508.91429235,0.00030136,6]
[328107569,1716867039694,-238.47107467,0.00030136,6]
[328107570,1716867039704,-500.0,0.00030136,6]
[328107571,1716867039714,-507.13416853,0.00030136,6]
[328107572,1716867039724,-500.0,0.00030136,6]
[328107573,1716867039734,-500.0,0.00030136,6]
[328107574,1716867039743,-500.0,0.00030136,6]
[328107575,1716867039754,-500.0,0.00030136,6]
[328107576,1716867039764,-500.0,0.00030136,6]
[328107577,1716867039775,-500.0,0.00030136,6]
[328107578,1716867039785,-348.09,0.00030136,6]
[328107579,1716867039799,-612.30600998,0.00030136,6]
[328107580,1716867039807,-500.0,0.00030136,6]
[328107581,1716867039818,-500.0,0.00030136,6]
[328107582,1716867039827,-500.0,0.00030136,6]
[328107583,1716867039837,-500.0,0.00030136,6]
[328107584,1716867039847,-500.0,0.00030136,6]
[328107585,1716867039857,-500.0,0.00030136,6]
[328107586,1716867039868,-500.0,0.00030136,6]
[328107587,1716867039878,-528.13697381,0.00030136,6]
[328107588,1716867039888,-505.63985413,0.00030136,6]
[328107589,1716867039899,-500.0,0.00030136,2]
[328107590,1716867039908,-500.0,0.00030136,2]
[328107591,1716867039918,-20000.0,0.00030136,2]
[328107592,1716867039928,-10293.52576004,0.00030136,2]
[328107593,1716867039939,-344.10619864,0.00030136,2]
[328107594,1716867039949,-548.3181629,0.00030136,6]
[328107595,1716867039959,-500.0,0.00030136,6]
[328107596,1716867039968,-509.67729711,0.00030136,6]
[328107597,1716867039979,-500.0,0.00030136,6]
[328107598,1716867039988,-500.0,0.00030136,6]
[328107599,1716867039998,-473.65033984,0.00030136,6]
[328107600,1716867040008,-500.0,0.00030136,6]
[328107601,1716867040018,-500.0,0.00030136,6]
[328107602,1716867040028,-500.0,0.00030136,6]
[328107603,1716867040042,-500.0,0.00030136,6]
[328107604,1716867040052,-500.0,0.00030136,6]
[328107605,1716867040063,-500.0,0.00030136,6]
[328107606,1716867040073,-500.0,0.00030136,6]
[328107607,1716867040084,-500.0,0.00030136,6]
[328107608,1716867040098,-323.28695998,0.00030136,6]
[328107609,1716867040108,-500.0,0.00030136,6]
[328107610,1716867040119,-215.22711113,0.00030136,6]
[328107611,1716867040131,-500.0,0.00030136,6]
[328107612,1716867040141,-467.68280959,0.00030136,6]
[328107613,1716867040151,-544.7585553,0.00030136,6]
[328107614,1716867040161,-500.0,0.00030136,6]
[328107615,1716867040173,-500.0,0.00030136,6]
[328107616,1716867040183,-500.0,0.00030136,6]
[328107617,1716867040193,-150.0,0.00030136,6]
[328107618,1716867040203,-150.0,0.00030136,6]
[328107619,1716867040213,-543.72123381,0.00030136,6]
[328107620,1716867040223,-150.0,0.00030136,6]
[328107621,1716867040233,-150.0,0.00030136,6]
[328107622,1716867040243,-150.0,0.00030136,6]
[328107623,1716867040252,-150.0,0.00030136,6]
[328107624,1716867040263,-150.0,0.00030136,6]
[328107625,1716867040272,-150.0,0.00030136,6]
[328107626,1716867040282,-500.0,0.00030136,6]
[328107627,1716867040296,-500.0,0.00030136,6]
[328107628,1716867040306,-500.0,0.00030136,6]
[328107629,1716867040316,-500.0,0.00030136,6]
[328107630,1716867040326,-500.0,0.00030136,6]
[328107631,1716867040337,-500.0,0.00030136,6]
[328107632,1716867040347,-500.0,0.00030136,6]
[328107633,1716867040358,-500.0,0.00030136,6]
[328107634,1716867040368,-500.0,0.00030136,6]
[328107635,1716867040378,-500.0,0.00030136,6]
[328107636,1716867040388,-500.0,0.00030136,6]
[328107637,1716867040398,-500.0,0.00030136,6]
[328107638,1716867040408,-500.0,0.00030136,6]
[328107639,1716867040417,-500.0,0.00030136,6]
[328107640,1716867040427,-500.0,0.00030136,6]
[328107641,1716867040436,-500.0,0.00030136,6]
[328107642,1716867040446,-625.58,0.00030136,6]
[328107643,1716867040455,-500.0,0.00030136,6]
[328107644,1716867040465,-500.0,0.00030136,6]
[328107645,1716867040475,-500.0,0.00030136,6]
[328107646,1716867040486,-255.78,0.00030136,6]
[328107647,1716867040496,-500.0,0.00030136,6]
[328107648,1716867040506,-500.0,0.00030136,6]
[328107649,1716867040516,-500.0,0.00030136,6]
[328107650,1716867040526,-500.0,0.00030136,6]
[328107651,1716867040538,-500.0,0.00030136,6]
[328107652,1716867040548,-367.64,0.00030136,6]
[328107653,1716867040558,-528.22936851,0.00030136,6]
[328107654,1716867040568,-500.0,0.00030136,6]
[328107655,1716867040578,-500.0,0.00030136,6]
[328107656,1716867040589,-508.38511694,0.00030136,6]
[328107657,1716867040599,-500.0,0.00030136,6]
[328107658,1716867040609,-500.0,0.00030136,6]
[328107659,1716867040619,-500.0,0.00030136,6]
[328107660,1716867040629,-500.0,0.00030136,6]
[328107661,1716867040639,-385.61,0.00030136,6]
[328107662,1716867040648,-500.0,0.00030136,6]
[328107663,1716867040659,-500.0,0.00030136,6]
[328107664,1716867040669,-500.0,0.00030136,6]
[328107665,1716867040679,-500.0,0.00030136,6]
[328107666,1716867040689,-500.0,0.00030136,6]
[328107667,1716867040700,-500.0,0.00030136,6]
[328107668,1716867040710,-504.32,0.00030136,6]
[328107669,1716867040721,-500.0,0.00030136,6]
[328107670,1716867040731,-500.0,0.00030136,6]
[328107671,1716867040741,-500.0,0.00030136,6]
[328107672,1716867040751,-500.0,0.00030136,6]
[328107673,1716867040761,-500.0,0.00030136,6]
[328107674,1716867040771,-500.0,0.00030136,6]
[328107675,1716867040782,-500.0,0.00030136,6]
[328107676,1716867040941,-500.0,0.00030136,6]
[328107677,1716867040952,-500.0,0.00030136,6]
[328107678,1716867040962,-500.0,0.00030136,6]
[328107679,1716867040973,-500.0,0.00030136,6]
[328107680,1716867040984,-500.0,0.00030136,6]
[328107681,1716867040994,-500.0,0.00030136,6]
[328107682,1716867041005,-513.32962591,0.00030136,6]
[328107683,1716867041015,-509.92,0.00030136,6]
[328107684,1716867041025,-500.0,0.00030136,6]
[328107685,1716867041035,-500.0,0.00030136,6]
[328107686,1716867041049,-213.39145828,0.00030136,6]
[328107687,1716867041060,-500.0,0.00030136,6]
[328107688,1716867041070,-500.0,0.00030136,6]
[328107689,1716867041080,-532.9878355,0.00030136,6]
[328107690,1716867041094,-500.0,0.00030136,6]
[328107691,1716867041104,-500.0,0.00030136,6]
[328107692,1716867041115,-294.58167128,0.00030136,6]
[328107693,1716867041126,-500.0,0.00030136,2]
[328107694,1716867041136,-500.0,0.00030136,2]
[328107695,1716867041147,-187.4594338,0.00030136,6]
[328107696,1716867041156,-500.0,0.00030136,6]
[328107697,1716867041167,-500.0,0.00030136,6]
[328107698,1716867041177,-518.7930738,0.00030136,6]
[328107699,1716867041187,-197.04271984,0.00030136,6]
[328107700,1716867041197,-500.0,0.00030136,6]
[328107701,1716867041207,-500.0,0.00030136,6]
[328107702,1716867041217,-500.0,0.00030136,6]
[328107704,1716867041228,-537.09659254,0.00030136,6]
[328107705,1716867041238,-500.0,0.00030136,6]
[328107706,1716867041248,-500.0,0.00030136,6]
[328107707,1716867041258,-500.0,0.00030136,6]
[328107708,1716867041268,-527.14901017,0.00030136,6]
[328107709,1716867041279,-500.0,0.00030136,6]
[328107710,1716867041291,-500.0,0.00030136,6]
[328107711,1716867041301,-500.0,0.00030136,6]
[328107712,1716867041311,-208.90204083,0.00030136,6]
[328107713,1716867041321,-966.36,0.00030136,6]
[328107714,1716867041331,-966.36,0.00030136,6]
[328107715,1716867041341,-966.36,0.00030136,6]
[328107716,1716867041351,-966.36,0.00030136,6]
[328107717,1716867041362,-966.36,0.00030136,6]
[328107718,1716867041371,-966.36,0.00030136,6]
[328107719,1716867041382,-966.36,0.00030136,6]
[328107720,1716867041391,-966.36,0.00030136,6]
[328107721,1716867041401,-500.0,0.00030136,6]
[328107722,1716867041411,-249.25695057,0.00030136,6]
[328107723,1716867041421,-500.0,0.00030136,6]
[328107724,1716867041431,-500.0,0.00030136,6]
[328107725,1716867041441,-500.0,0.00030136,6]
[328107726,1716867041450,-500.0,0.00030136,6]
[328107727,1716867041460,-500.0,0.00030136,6]
[328107728,1716867041470,-425.0,0.00030136,6]
[328107729,1716867041480,-500.0,0.00030136,6]
[328107730,1716867041490,-500.0,0.00030136,6]
[328107731,1716867041500,-500.0,0.00030136,6]
[328107732,1716867041510,-500.0,0.00030136,6]
[328107733,1716867041520,-500.0,0.00030136,6]
[328107734,1716867041530,-500.0,0.00030136,6]
[328107735,1716867041543,-500.0,0.00030136,6]
[328107736,1716867041553,-595.12175489,0.00030136,6]
[328107737,1716867041563,-500.0,0.00030136,6]
[328107738,1716867041572,-500.0,0.00030136,6]
[328107739,1716867041582,-500.0,0.00030136,6]
[328107740,1716867041591,-500.0,0.00030136,6]
[328107741,1716867041601,-500.0,0.00030136,6]
[328107742,1716867041612,-500.0,0.00030136,6]
[328107743,1716867041622,-312.35420739,0.00030136,6]
[328107744,1716867041631,-500.0,0.00030136,6]
[328107745,1716867041641,-500.0,0.00030136,6]
[328107746,1716867041651,-425.77440756,0.00030136,6]
[328107747,1716867041660,-500.0,0.00030136,6]
[328107748,1716867041670,-500.0,0.00030136,6]
[328107749,1716867041680,-500.0,0.00030136,6]
[328107750,1716867041690,-500.0,0.00030136,6]
[328107751,1716867041699,-500.0,0.00030136,6]
[328107752,1716867041709,-382.64,0.00030136,6]
[328107753,1716867041719,-516.09700948,0.00030136,6]
[328107754,1716867041728,-500.0,0.00030136,6]
[328107755,1716867041738,-500.0,0.00030136,6]
[328107756,1716867041748,-297.61247622,0.00030136,6]
[328107757,1716867041757,-500.0,0.00030136,6]
[328107758,1716867041767,-500.0,0.00030136,6]
[328107759,1716867041776,-500.0,0.00030136,6]
[328107760,1716867041789,-500.0,0.00030136,6]
[328107761,1716867041799,-500.0,0.00030136,6]
[328107762,1716867041808,-500.0,0.00030136,6]
[328107763,1716867041818,-500.0,0.00030136,6]
[328107764,1716867041827,-643.32,0.00030136,6]
[328107765,1716867041837,-500.0,0.00030136,6]
[328107766,1716867041847,-528.46905488,0.00030136,6]
[328107767,1716867041858,-500.0,0.00030136,6]
[328107768,1716867041867,-500.0,0.00030136,6]
[328107769,1716867041876,-500.0,0.00030136,6]
[328107770,1716867041886,-514.2040342,0.00030136,6]
[328107771,1716867041895,-500.0,0.00030136,6]
[328107772,1716867041905,-500.0,0.00030136,6]
[328107773,1716867041916,-500.0,0.00030136,6]
[328107774,1716867041925,-500.0,0.00030136,6]
[328107775,1716867041934,-500.0,0.00030136,6]
[328107776,1716867041944,-500.0,0.00030136,6]
[328107777,1716867041954,-315.19280502,0.00030136,6]
[328107778,1716867041965,-500.0,0.00030136,6]
[328107779,1716867041976,-500.0,0.00030136,6]
[328107780,1716867041986,-500.0,0.00030136,6]
[328107781,1716867041996,-500.0,0.00030136,6]
[328107782,1716867042006,-500.0,0.00030136,6]
[328107783,1716867042016,-500.0,0.00030136,6]
[328107784,1716867042025,-500.0,0.00030136,6]
[328107785,1716867042035,-500.0,0.00030136,6]
[328107786,1716867042047,-505.8079353,0.00030136,6]
[328107787,1716867042056,-500.0,0.00030136,6]
[328107788,1716867042065,-500.0,0.00030136,6]
[328107789,1716867042075,-500.0,0.00030136,6]
[328107790,1716867042086,-500.0,0.00030136,6]
[328107791,1716867042099,-500.0,0.00030136,6]
[328107792,1716867042109,-500.0,0.00030136,6]
[328107793,1716867042119,-500.0,0.00030136,6]
[328107794,1716867042130,-500.0,0.00030136,6]
[328107795,1716867042140,-500.0,0.00030136,6]
[328107796,1716867042150,-500.0,0.00030136,6]
[328107797,1716867042161,-500.0,0.00030136,6]
[328107798,1716867042173,-500.0,0.00030136,6]
[328107799,1716867042184,-531.12152688,0.00030136,6]
[328107800,1716867042194,-500.0,0.00030136,2]
[328107801,1716867042203,-500.0,0.00030136,2]
[328107802,1716867042213,-500.0,0.00030136,6]
[328107803,1716867042223,-476.03943009,0.00030136,6]
[328107804,1716867042233,-500.0,0.00030136,2]
[328107805,1716867042242,-500.0,0.00030136,2]
[328107806,1716867042252,-500.0,0.00030136,2]
[328107807,1716867042262,-392.22,0.00030136,2]
[328107808,1716867042271,-500.0,0.00030136,6]
[328107809,1716867042281,-500.0,0.00030136,6]
[328107810,1716867042292,-500.0,0.00030136,6]
[328107811,1716867042301,-500.0,0.00030136,6]
[328107812,1716867042311,-500.0,0.00030136,6]
[328107813,1716867042320,-500.0,0.00030136,6]
[328107814,1716867042329,-558.37551757,0.00030136,6]
[328107815,1716867042339,-500.0,0.00030136,6]
[328107816,1716867042348,-500.0,0.00030136,6]
[328107817,1716867042358,-500.0,0.00030136,6]
[328107818,1716867042368,-500.0,0.00030136,6]
[328107819,1716867042378,-500.0,0.00030136,6]
[328107820,1716867042387,-500.0,0.00030136,6]
[328107821,1716867042396,-500.0,0.00030136,6]
[328107822,1716867042406,-620.59970866,0.00030136,2]
[328107823,1716867042415,-503.80888867,0.00030136,2]
[328107824,1716867042425,-500.0,0.00030136,6]
[328107825,1716867042435,-500.0,0.00030136,6]
[328107826,1716867042444,-500.0,0.00030136,6]
[328107827,1716867042454,-500.0,0.00030136,6]
[328107828,1716867042464,-265.81811826,0.00030136,6]
[328107829,1716867042473,-502.68360396,0.00030136,2]
[328107830,1716867042482,-42652.94325754,0.00030136,2]
[328107831,1716867042492,-302.331774,0.00030136,2]
[328107832,1716867042502,-500.0,0.00030136,6]
[328107833,1716867042511,-500.0,0.00030136,6]
[328107834,1716867042522,-500.0,0.00030136,6]
[328107835,1716867042531,-500.0,0.00030136,6]
[328107836,1716867042543,-500.0,0.00030136,6]
[328107837,1716867042553,-500.0,0.00030136,2]
[328107838,1716867042563,-500.0,0.00030136,6]
[328107839,1716867042573,-500.0,0.00030136,6]
[328107840,1716867042583,-500.0,0.00030136,6]
[328107841,1716867042593,-500.0,0.00030136,6]
[328107842,1716867042603,-500.0,0.00030136,6]
[328107843,1716867042613,-500.0,0.00030136,6]
[328107844,1716867042623,-500.0,0.00030136,6]
[328107845,1716867042633,-500.0,0.00030136,6]
[328107846,1716867042643,-500.0,0.00030136,6]
[328107847,1716867042652,-500.0,0.00030136,6]
[328107848,1716867042663,-500.0,0.00030136,6]
[328107849,1716867042672,-500.0,0.00030136,6]
[328107850,1716867042682,-500.0,0.00030136,6]
[328107851,1716867042692,-154.93843607,0.00030136,6]
[328107852,1716867042702,-500.0,0.00030136,6]
[328107853,1716867042712,-500.0,0.00030136,6]
[328107854,1716867042722,-500.0,0.00030136,6]
[328107855,1716867042731,-812.17,0.00030136,6]
[328107856,1716867042741,-500.0,0.00030136,6]
[328107857,1716867042750,-500.0,0.00030136,6]
[328107858,1716867042760,-812.17,0.00030136,6]
[328107859,1716867042770,-500.0,0.00030136,6]
[328107860,1716867042780,-812.17,0.00030136,6]
[328107861,1716867042791,-500.0,0.00030136,6]
[328107862,1716867042800,-812.17,0.00030136,6]
[328107863,1716867042809,-500.0,0.00030136,6]
[328107864,1716867042818,-812.17,0.00030136,6]
[328107866,1716867042827,-812.17,0.00030136,6]
[328107868,1716867042837,-812.17,0.00030136,6]
[328107870,1716867042846,-812.17,0.00030136,6]
[328107872,1716867042856,-640.9526831,0.00030136,6]
[328107873,1716867042865,-500.0,0.00030136,6]
[328107874,1716867042874,-500.0,0.00030136,6]
[328107875,1716867042884,-500.0,0.00030136,6]